[Event "*** Titled Tuesday Blitz"]
[Site "Chess.com"]
[Date "2020.10.20"]
[Round "10"]
[White "Heineccius"]
[Black "German_Bazeev"]
[Result "0-1"]
[WhiteElo "2542"]
[BlackElo "2716"]
[TimeControl "180+1"]
[EndTime "11:56:19 PDT"]
[Termination "German_Bazeev won by resignation"]

1. d4 {[%clk 0:03:00.9]} 1... Nf6 {[%clk 0:02:46.1]} 2. c4 {[%clk 0:02:59.9]}
2... e6 {[%clk 0:02:45.6]} 3. Nc3 {[%clk 0:02:58.1]} 3... Bb4 {[%clk 0:02:45.7]}
4. g3 {[%clk 0:02:58.2]} 4... d5 {[%clk 0:02:45.3]} 5. Bg2 {[%clk 0:02:57.6]}
5... O-O {[%clk 0:02:42.4]} 6. Nf3 {[%clk 0:02:57.8]} 6... c5 {[%clk 0:02:38]}
7. O-O {[%clk 0:02:55.4]} 7... dxc4 {[%clk 0:02:29.3]} 8. dxc5 {[%clk
0:02:54.8]} 8... Nc6 {[%clk 0:02:19.7]} 9. Na4 {[%clk 0:02:30.4]} 9... e5 {[%clk
0:02:06.2]} 10. Qc2 {[%clk 0:02:24.3]} 10... h6 {[%clk 0:01:49.4]} 11. Rd1
{[%clk 0:02:09.5]} 11... Qe7 {[%clk 0:01:48]} 12. Qxc4 {[%clk 0:02:01]} 12...
Be6 {[%clk 0:01:39.9]} 13. Qh4 {[%clk 0:02:00.4]} 13... e4 {[%clk 0:01:32.2]}
14. Nd4 {[%clk 0:01:53.9]} 14... Bc4 {[%clk 0:01:16.8]} 15. Be3 {[%clk
0:01:19.5]} 15... Rad8 {[%clk 0:01:07.6]} 16. b3 {[%clk 0:01:07.7]} 16... Ba6
{[%clk 0:00:52.3]} 17. Nf5 {[%clk 0:01:00.7]} 17... Qe5 {[%clk 0:00:51.7]} 18.
Bh3 {[%clk 0:00:55.8]} 18... Bxe2 {[%clk 0:00:45.6]} 19. Rxd8 {[%clk 0:00:51.7]}
19... Qxa1+ {[%clk 0:00:43]} 0-1

[Event "*** Titled Tuesday Blitz"]
[Site "Chess.com"]
[Date "2020.10.20"]
[Round "10"]
[White "GM_Levan_Pantsulaia"]
[Black "UmbertoConcelli"]
[Result "1-0"]
[WhiteElo "2867"]
[BlackElo "2727"]
[TimeControl "180+1"]
[EndTime "11:56:20 PDT"]
[Termination "GM_Levan_Pantsulaia won by resignation"]

1. Nf3 {[%clk 0:03:00.9]} 1... d5 {[%clk 0:02:59.6]} 2. g3 {[%clk 0:03:00.8]}
2... g6 {[%clk 0:02:58.9]} 3. c4 {[%clk 0:02:59.7]} 3... dxc4 {[%clk 0:02:55.2]}
4. Na3 {[%clk 0:02:58.2]} 4... Bg7 {[%clk 0:02:46.2]} 5. Nxc4 {[%clk 0:02:58.1]}
5... Nc6 {[%clk 0:02:46.4]} 6. d3 {[%clk 0:02:56.8]} 6... e5 {[%clk 0:02:45.9]}
7. Bg2 {[%clk 0:02:57]} 7... e4 {[%clk 0:02:42.3]} 8. dxe4 {[%clk 0:02:56.2]}
8... Qxd1+ {[%clk 0:02:41.9]} 9. Kxd1 {[%clk 0:02:55.4]} 9... Nf6 {[%clk
0:02:42.8]} 10. Nfe5 {[%clk 0:02:39.5]} 10... Nxe5 {[%clk 0:02:14.9]} 11. Nxe5
{[%clk 0:02:40.4]} 11... Nxe4 {[%clk 0:02:15.4]} 12. Bxe4 {[%clk 0:02:40.1]}
12... Bxe5 {[%clk 0:02:15.9]} 13. Kc2 {[%clk 0:02:31.3]} 13... c6 {[%clk
0:02:15.6]} 14. f4 {[%clk 0:02:25.5]} 14... Bg7 {[%clk 0:02:12.6]} 15. Bf3
{[%clk 0:02:23]} 15... f5 {[%clk 0:02:12.7]} 16. Be3 {[%clk 0:02:18.8]} 16...
Be6 {[%clk 0:02:11.3]} 17. Rad1 {[%clk 0:02:12.3]} 17... Kf7 {[%clk 0:02:07.2]}
18. Bd4 {[%clk 0:02:06.4]} 18... Rhd8 {[%clk 0:02:00.6]} 19. Bxg7 {[%clk
0:02:05.6]} 19... Kxg7 {[%clk 0:02:01.5]} 20. a3 {[%clk 0:02:04.2]} 20... a5
{[%clk 0:02:00.4]} 21. Kc3 {[%clk 0:02:00.9]} 21... Kf6 {[%clk 0:01:56.7]} 22.
e4 {[%clk 0:01:56.1]} 22... fxe4 {[%clk 0:01:56.1]} 23. Bxe4 {[%clk 0:01:57]}
23... Bg4 {[%clk 0:01:56.6]} 24. Rxd8 {[%clk 0:01:52.6]} 24... Rxd8 {[%clk
0:01:57.5]} 25. h3 {[%clk 0:01:47.6]} 25... Be6 {[%clk 0:01:53.8]} 26. g4 {[%clk
0:01:45]} 26... h6 {[%clk 0:01:52.4]} 27. Re1 {[%clk 0:01:39.4]} 27... b6 {[%clk
0:01:22.3]} 28. Bxg6 {[%clk 0:01:35.1]} 28... c5 {[%clk 0:01:10.6]} 29. Bd3
{[%clk 0:01:31.4]} 29... Bf7 {[%clk 0:01:09.5]} 30. h4 {[%clk 0:01:30.7]} 30...
Rd4 {[%clk 0:01:07]} 31. g5+ {[%clk 0:01:26.4]} 31... Kg7 {[%clk 0:01:06.6]} 32.
Re7 {[%clk 0:01:20.3]} 32... Kf8 {[%clk 0:01:02.5]} 33. Re4 {[%clk 0:01:19]} 1-0

[Event "*** Titled Tuesday Blitz"]
[Site "Chess.com"]
[Date "2020.10.20"]
[Round "10"]
[White "GiantThresher"]
[Black "Kildepiotr"]
[Result "1-0"]
[WhiteElo "2826"]
[BlackElo "2663"]
[TimeControl "180+1"]
[EndTime "11:56:23 PDT"]
[Termination "GiantThresher won by resignation"]

1. e4 {[%clk 0:03:00.9]} 1... g6 {[%clk 0:02:59.2]} 2. d4 {[%clk 0:03:00.5]}
2... Bg7 {[%clk 0:02:58.9]} 3. Nc3 {[%clk 0:03:01.1]} 3... c6 {[%clk 0:02:58.7]}
4. Be3 {[%clk 0:03:00.3]} 4... d5 {[%clk 0:02:58.3]} 5. f3 {[%clk 0:03:00.8]}
5... dxe4 {[%clk 0:02:57.8]} 6. fxe4 {[%clk 0:02:58.2]} 6... Nf6 {[%clk
0:02:58.2]} 7. Nf3 {[%clk 0:02:58.3]} 7... Ng4 {[%clk 0:02:58.1]} 8. Bg1 {[%clk
0:02:54.8]} 8... e5 {[%clk 0:02:57.7]} 9. d5 {[%clk 0:02:52.5]} 9... O-O {[%clk
0:02:56.2]} 10. h3 {[%clk 0:02:48.9]} 10... Nf6 {[%clk 0:02:55.9]} 11. dxc6
{[%clk 0:02:41.3]} 11... Nxc6 {[%clk 0:02:52.7]} 12. Qxd8 {[%clk 0:02:38.8]}
12... Rxd8 {[%clk 0:02:52.2]} 13. Bc4 {[%clk 0:02:39.7]} 13... Nd4 {[%clk
0:02:42]} 14. O-O-O {[%clk 0:02:27.4]} 14... Be6 {[%clk 0:02:30.4]} 15. Bxe6
{[%clk 0:02:19.5]} 15... Nxe6 {[%clk 0:02:31.3]} 16. Rxd8+ {[%clk 0:02:18.9]}
16... Rxd8 {[%clk 0:02:30.5]} 17. Bxa7 {[%clk 0:02:16.1]} 17... Nf4 {[%clk
0:02:09.6]} 18. g3 {[%clk 0:02:14.1]} 18... N4h5 {[%clk 0:02:08.8]} 19. Bf2
{[%clk 0:02:09.5]} 19... Ne8 {[%clk 0:02:00.4]} 20. Rd1 {[%clk 0:02:02.5]} 20...
Rxd1+ {[%clk 0:01:58.8]} 21. Kxd1 {[%clk 0:02:00.7]} 21... Nd6 {[%clk
0:01:58.5]} 22. Ke2 {[%clk 0:01:59.3]} 22... f6 {[%clk 0:01:56.9]} 23. Kd3
{[%clk 0:01:59.3]} 23... f5 {[%clk 0:01:54.4]} 24. Nd2 {[%clk 0:01:39.6]} 24...
Bh6 {[%clk 0:01:51.9]} 25. Nc4 {[%clk 0:01:38.6]} 25... Nxc4 {[%clk 0:01:51.5]}
26. Kxc4 {[%clk 0:01:39.5]} 26... Bc1 {[%clk 0:01:47]} 27. b4 {[%clk 0:01:31.1]}
27... Kf7 {[%clk 0:01:46.8]} 28. a4 {[%clk 0:01:31.2]} 28... Ke6 {[%clk
0:01:46.4]} 29. a5 {[%clk 0:01:30.5]} 29... Nf6 {[%clk 0:01:45]} 30. exf5+
{[%clk 0:01:23.5]} 30... gxf5 {[%clk 0:01:44.8]} 31. b5 {[%clk 0:01:24.4]} 31...
Kd7 {[%clk 0:01:41.3]} 32. a6 {[%clk 0:00:44.2]} 32... bxa6 {[%clk 0:01:41]} 33.
bxa6 {[%clk 0:00:45.1]} 33... Kc6 {[%clk 0:01:40.5]} 34. Nb5 {[%clk 0:00:45.5]}
34... Ne4 {[%clk 0:01:34.8]} 35. a7 {[%clk 0:00:44.8]} 35... Kb7 {[%clk
0:01:34.6]} 36. Nc7 {[%clk 0:00:42.6]} 36... Nd6+ {[%clk 0:01:27.7]} 37. Kd5
{[%clk 0:00:42]} 1-0

[Event "*** Titled Tuesday Blitz"]
[Site "Chess.com"]
[Date "2020.10.20"]
[Round "10"]
[White "SCIM"]
[Black "ChelsieMonica"]
[Result "1-0"]
[WhiteElo "2473"]
[BlackElo "2353"]
[TimeControl "180+1"]
[EndTime "11:56:31 PDT"]
[Termination "SCIM won by resignation"]

1. d4 {[%clk 0:03:00.9]} 1... Nf6 {[%clk 0:02:43.1]} 2. c4 {[%clk 0:03:00.9]}
2... e6 {[%clk 0:02:42.5]} 3. Nf3 {[%clk 0:03:00.7]} 3... b6 {[%clk 0:02:42.1]}
4. a3 {[%clk 0:02:59.7]} 4... Bb7 {[%clk 0:02:42.7]} 5. Nc3 {[%clk 0:02:58.8]}
5... Be7 {[%clk 0:02:43.6]} 6. d5 {[%clk 0:02:58.1]} 6... d6 {[%clk 0:02:43.3]}
7. e4 {[%clk 0:02:57.8]} 7... e5 {[%clk 0:02:43.4]} 8. Be2 {[%clk 0:02:53.5]}
8... Nbd7 {[%clk 0:02:44]} 9. Be3 {[%clk 0:02:51.9]} 9... a5 {[%clk 0:02:44.9]}
10. Nd2 {[%clk 0:02:50.2]} 10... h5 {[%clk 0:02:42.7]} 11. b3 {[%clk 0:02:43.9]}
11... h4 {[%clk 0:02:39.5]} 12. h3 {[%clk 0:02:40.4]} 12... Nf8 {[%clk
0:02:39.3]} 13. b4 {[%clk 0:02:37.1]} 13... Ng6 {[%clk 0:02:38.8]} 14. O-O
{[%clk 0:02:29.9]} 14... Nf4 {[%clk 0:02:38.6]} 15. Bf3 {[%clk 0:02:24.7]} 15...
g5 {[%clk 0:02:36.8]} 16. c5 {[%clk 0:02:19.4]} 16... Rg8 {[%clk 0:02:34.5]} 17.
cxb6 {[%clk 0:02:14.8]} 17... cxb6 {[%clk 0:02:34.2]} 18. Nc4 {[%clk 0:02:03.2]}
18... Rc8 {[%clk 0:02:19.6]} 19. Bxb6 {[%clk 0:01:28]} 19... Qd7 {[%clk
0:02:18.6]} 20. Qb3 {[%clk 0:01:23.5]} 20... g4 {[%clk 0:02:12.8]} 21. hxg4
{[%clk 0:01:19]} 21... Nxg4 {[%clk 0:02:12.7]} 22. Bxa5 {[%clk 0:01:12.7]} 22...
Rxc4 {[%clk 0:01:56.2]} 23. Qxc4 {[%clk 0:01:10.7]} 23... Nh3+ {[%clk
0:01:54.9]} 24. Kh1 {[%clk 0:01:03.7]} 24... Nhxf2+ {[%clk 0:01:50.5]} 25. Rxf2
{[%clk 0:01:04.6]} 25... Nxf2+ {[%clk 0:01:50.6]} 26. Kg1 {[%clk 0:01:05.5]}
26... Nh3+ {[%clk 0:01:48.4]} 27. Kf1 {[%clk 0:00:57.8]} 27... Nf4 {[%clk
0:01:45.1]} 28. Qc7 {[%clk 0:00:51.7]} 28... Qxc7 {[%clk 0:01:37.3]} 29. Bxc7
{[%clk 0:00:52.6]} 29... Kd7 {[%clk 0:01:37.1]} 30. Bb6 {[%clk 0:00:50.7]} 30...
h3 {[%clk 0:01:34]} 31. gxh3 {[%clk 0:00:48.5]} 31... Nxh3 {[%clk 0:01:29.3]}
32. a4 {[%clk 0:00:45.5]} 32... Rg1+ {[%clk 0:01:26.5]} 33. Bxg1 {[%clk
0:00:44.4]} 33... Nxg1 {[%clk 0:01:12.5]} 34. Kxg1 {[%clk 0:00:43.8]} 1-0

[Event "*** Titled Tuesday Blitz"]
[Site "Chess.com"]
[Date "2020.10.20"]
[Round "10"]
[White "WIDBIFS"]
[Black "eljanov"]
[Result "0-1"]
[WhiteElo "2771"]
[BlackElo "2896"]
[TimeControl "180+1"]
[EndTime "11:56:33 PDT"]
[Termination "eljanov won by resignation"]

1. d4 {[%clk 0:02:56.5]} 1... Nf6 {[%clk 0:02:59.4]} 2. Nf3 {[%clk 0:02:56.9]}
2... e6 {[%clk 0:02:58.3]} 3. Bf4 {[%clk 0:02:57.3]} 3... d5 {[%clk 0:02:57.5]}
4. e3 {[%clk 0:02:57.6]} 4... Bd6 {[%clk 0:02:58.1]} 5. Bg3 {[%clk 0:02:58]}
5... O-O {[%clk 0:02:57.6]} 6. Nbd2 {[%clk 0:02:58.2]} 6... c5 {[%clk
0:02:57.7]} 7. c3 {[%clk 0:02:58.4]} 7... Qc7 {[%clk 0:02:55.8]} 8. Bd3 {[%clk
0:02:58.3]} 8... Nbd7 {[%clk 0:02:53.8]} 9. Qc2 {[%clk 0:02:58.1]} 9... e5
{[%clk 0:02:48.7]} 10. dxe5 {[%clk 0:02:59]} 10... Nxe5 {[%clk 0:02:48.5]} 11.
Nxe5 {[%clk 0:02:59.7]} 11... Bxe5 {[%clk 0:02:48.8]} 12. Bh4 {[%clk 0:03:00.5]}
12... Kh8 {[%clk 0:02:27.2]} 13. Nf3 {[%clk 0:02:57.3]} 13... c4 {[%clk
0:02:15.8]} 14. Bf5 {[%clk 0:02:47.9]} 14... Re8 {[%clk 0:01:52.5]} 15. O-O
{[%clk 0:02:35.8]} 15... Ne4 {[%clk 0:01:51.3]} 16. Bxe4 {[%clk 0:02:34.5]}
16... dxe4 {[%clk 0:01:50.5]} 17. Nxe5 {[%clk 0:02:34.9]} 17... Qxe5 {[%clk
0:01:47.5]} 18. Rad1 {[%clk 0:02:31.6]} 18... Bg4 {[%clk 0:01:39.6]} 19. Rd4
{[%clk 0:02:31.1]} 19... b5 {[%clk 0:01:38.7]} 20. Qd2 {[%clk 0:02:23.4]} 20...
a6 {[%clk 0:01:32.1]} 21. h3 {[%clk 0:02:19.3]} 21... Be6 {[%clk 0:01:25.3]} 22.
Rd1 {[%clk 0:02:17.4]} 22... Qf5 {[%clk 0:01:20.7]} 23. Qc2 {[%clk 0:02:09.3]}
23... Qh5 {[%clk 0:01:09.7]} 24. Qxe4 {[%clk 0:02:01.5]} 24... h6 {[%clk
0:00:51.1]} 25. Qf4 {[%clk 0:01:44.9]} 25... Qg6 {[%clk 0:00:44.5]} 26. Bg3
{[%clk 0:01:43]} 26... Qc2 {[%clk 0:00:42.7]} 27. R4d2 {[%clk 0:01:42.6]} 27...
Qg6 {[%clk 0:00:41.7]} 28. Kh2 {[%clk 0:01:40.7]} 28... Bf5 {[%clk 0:00:39.7]}
29. Rd6 {[%clk 0:01:36.7]} 29... f6 {[%clk 0:00:40.1]} 30. R1d4 {[%clk
0:01:30.6]} 30... Bd3 {[%clk 0:00:40.3]} 31. f3 {[%clk 0:01:25.5]} 31... Bb1
{[%clk 0:00:37.3]} 32. e4 {[%clk 0:01:22.1]} 32... Bxa2 {[%clk 0:00:35.2]} 0-1

[Event "*** Titled Tuesday Blitz"]
[Site "Chess.com"]
[Date "2020.10.20"]
[Round "10"]
[White "GregShahade"]
[Black "scarabee43"]
[Result "0-1"]
[WhiteElo "2647"]
[BlackElo "2522"]
[TimeControl "180+1"]
[EndTime "11:56:33 PDT"]
[Termination "scarabee43 won by resignation"]

1. e4 {[%clk 0:03:00.9]} 1... c5 {[%clk 0:02:59.9]} 2. Nf3 {[%clk 0:03:00.5]}
2... e6 {[%clk 0:03:00.7]} 3. d4 {[%clk 0:03:00.2]} 3... cxd4 {[%clk 0:03:01.6]}
4. Nxd4 {[%clk 0:03:00.5]} 4... Nc6 {[%clk 0:03:02.3]} 5. Nc3 {[%clk 0:03:00.6]}
5... Qc7 {[%clk 0:03:02.9]} 6. Be3 {[%clk 0:02:58.1]} 6... a6 {[%clk 0:03:03.4]}
7. Qf3 {[%clk 0:02:57.5]} 7... Nf6 {[%clk 0:03:03.2]} 8. O-O-O {[%clk
0:02:55.6]} 8... Be7 {[%clk 0:03:03.6]} 9. Kb1 {[%clk 0:02:49.4]} 9... O-O
{[%clk 0:03:01.4]} 10. g4 {[%clk 0:02:48.7]} 10... d6 {[%clk 0:02:56.4]} 11.
Nxc6 {[%clk 0:02:45.9]} 11... Qxc6 {[%clk 0:02:54.4]} 12. g5 {[%clk 0:02:42.5]}
12... Nd7 {[%clk 0:02:54.4]} 13. h4 {[%clk 0:02:38.9]} 13... b5 {[%clk
0:02:53.4]} 14. Qg3 {[%clk 0:02:12.3]} 14... Bb7 {[%clk 0:02:50.9]} 15. Bd3
{[%clk 0:02:07.5]} 15... Rac8 {[%clk 0:02:49]} 16. h5 {[%clk 0:02:02.5]} 16...
Ne5 {[%clk 0:02:44.2]} 17. Rc1 {[%clk 0:01:44]} 17... Nc4 {[%clk 0:02:33.7]} 18.
Ne2 {[%clk 0:00:58.9]} 18... d5 {[%clk 0:02:24.5]} 19. exd5 {[%clk 0:00:53.3]}
19... Qxd5 {[%clk 0:02:23.3]} 20. Rhd1 {[%clk 0:00:50.5]} 20... Nxe3 {[%clk
0:02:19.2]} 21. Bxh7+ {[%clk 0:00:25.5]} 21... Kxh7 {[%clk 0:02:18.7]} 22. Rxd5
{[%clk 0:00:21]} 22... Nxd5 {[%clk 0:02:18.8]} 23. g6+ {[%clk 0:00:21.6]} 23...
Kg8 {[%clk 0:02:17.9]} 24. h6 {[%clk 0:00:19.2]} 24... Bf6 {[%clk 0:02:12.8]}
25. hxg7 {[%clk 0:00:17.5]} 25... Bxg7 {[%clk 0:02:11.9]} 26. Qh3 {[%clk
0:00:14.2]} 26... fxg6 {[%clk 0:01:54.9]} 27. Qxe6+ {[%clk 0:00:14.3]} 27... Rf7
{[%clk 0:01:54.9]} 28. Qxg6 {[%clk 0:00:14.9]} 28... Rc6 {[%clk 0:01:50.7]} 29.
Qg4 {[%clk 0:00:14]} 29... Rcf6 {[%clk 0:01:46.3]} 30. Ng3 {[%clk 0:00:14.1]}
30... Rxf2 {[%clk 0:01:43.6]} 31. Nh5 {[%clk 0:00:13.8]} 31... Nf6 {[%clk
0:01:42.5]} 32. Nxf6+ {[%clk 0:00:09.6]} 32... R2xf6 {[%clk 0:01:42.9]} 33. a3
{[%clk 0:00:09.8]} 33... Bf3 {[%clk 0:01:41.6]} 34. Qc8+ {[%clk 0:00:09.4]}
34... Rf8 {[%clk 0:01:41.7]} 35. Qb7 {[%clk 0:00:09.5]} 35... Bxb7 {[%clk
0:01:41.3]} 0-1

[Event "*** Titled Tuesday Blitz"]
[Site "Chess.com"]
[Date "2020.10.20"]
[Round "10"]
[White "ChessArchitect64"]
[Black "TrickyFortem"]
[Result "0-1"]
[WhiteElo "2059"]
[BlackElo "2424"]
[TimeControl "180+1"]
[EndTime "11:56:35 PDT"]
[Termination "TrickyFortem won by checkmate"]

1. d4 {[%clk 0:02:57.5]} 1... d5 {[%clk 0:01:17.8]} 2. c4 {[%clk 0:02:54.3]}
2... e6 {[%clk 0:01:18.2]} 3. e3 {[%clk 0:02:53.4]} 3... f5 {[%clk 0:01:18.4]}
4. cxd5 {[%clk 0:02:52.2]} 4... exd5 {[%clk 0:01:18.6]} 5. Nc3 {[%clk
0:02:52.3]} 5... Nf6 {[%clk 0:01:18.8]} 6. Bd3 {[%clk 0:02:52.5]} 6... c6 {[%clk
0:01:15.9]} 7. Qc2 {[%clk 0:02:52.8]} 7... Qd7 {[%clk 0:01:14.2]} 8. Nge2 {[%clk
0:02:52.8]} 8... Bd6 {[%clk 0:01:14.2]} 9. Bd2 {[%clk 0:02:51.5]} 9... O-O
{[%clk 0:01:14.2]} 10. O-O-O {[%clk 0:02:51.7]} 10... Ne4 {[%clk 0:01:14.1]} 11.
Rhf1 {[%clk 0:02:48.9]} 11... b5 {[%clk 0:01:13.8]} 12. f3 {[%clk 0:02:49.1]}
12... Nxd2 {[%clk 0:01:13.9]} 13. Qxd2 {[%clk 0:02:48.4]} 13... b4 {[%clk
0:01:13.7]} 14. Nb1 {[%clk 0:02:44.9]} 14... a5 {[%clk 0:01:13.6]} 15. e4 {[%clk
0:02:39.5]} 15... Ba6 {[%clk 0:01:06.9]} 16. Bxa6 {[%clk 0:02:37.9]} 16... Nxa6
{[%clk 0:01:06.9]} 17. e5 {[%clk 0:02:38.2]} 17... Be7 {[%clk 0:01:06.9]} 18.
Nf4 {[%clk 0:02:36.1]} 18... Nc7 {[%clk 0:01:06.6]} 19. Rde1 {[%clk 0:02:34]}
19... Bg5 {[%clk 0:01:03.9]} 20. g3 {[%clk 0:02:30.5]} 20... Ne6 {[%clk
0:01:02.9]} 21. h4 {[%clk 0:02:28.8]} 21... Bxf4 {[%clk 0:01:00.6]} 22. gxf4
{[%clk 0:02:28.7]} 22... c5 {[%clk 0:00:56.7]} 23. dxc5 {[%clk 0:02:27.6]} 23...
Rac8 {[%clk 0:00:56.9]} 24. Kd1 {[%clk 0:02:26.7]} 24... Rxc5 {[%clk 0:00:56.2]}
25. Re2 {[%clk 0:02:23.9]} 25... Qe7 {[%clk 0:00:56.2]} 26. h5 {[%clk
0:02:15.7]} 26... Rfc8 {[%clk 0:00:56.2]} 27. Qe3 {[%clk 0:01:57]} 27... d4
{[%clk 0:00:53]} 28. Qd3 {[%clk 0:01:50.3]} 28... Rc1+ {[%clk 0:00:52.5]} 29.
Kd2 {[%clk 0:01:50.8]} 29... Rxf1 {[%clk 0:00:52.8]} 30. Qxf5 {[%clk 0:01:51.1]}
30... Rf8 {[%clk 0:00:48.9]} 31. Qd3 {[%clk 0:01:49.4]} 31... Nxf4 {[%clk
0:00:49.1]} 32. Qa6 {[%clk 0:01:48.3]} 32... Nxe2 {[%clk 0:00:48.4]} 33. Qxe2
{[%clk 0:01:48.5]} 33... Rxb1 {[%clk 0:00:48]} 34. Kd3 {[%clk 0:01:47.7]} 34...
Qf7 {[%clk 0:00:46.1]} 35. Ke4 {[%clk 0:01:47.7]} 35... Qf5+ {[%clk 0:00:44.8]}
36. Kd5 {[%clk 0:01:48.1]} 36... Rd8+ {[%clk 0:00:44.9]} 37. Kc5 {[%clk
0:01:47.7]} 37... Qc8+ {[%clk 0:00:45.1]} 38. Kb5 {[%clk 0:01:47.8]} 38... Rd5+
{[%clk 0:00:44.5]} 39. Ka4 {[%clk 0:01:48.1]} 39... Qc6+ {[%clk 0:00:44.3]} 40.
Kb3 {[%clk 0:01:48]} 40... a4+ {[%clk 0:00:42.3]} 41. Kxb4 {[%clk 0:01:48.7]}
41... Rb5+ {[%clk 0:00:40.4]} 42. Ka3 {[%clk 0:01:48]} 42... R1xb2 {[%clk
0:00:40.2]} 43. e6 {[%clk 0:01:46.8]} 43... Qc3+ {[%clk 0:00:40]} 44. Kxa4
{[%clk 0:01:45.9]} 44... Qb4# {[%clk 0:00:39.1]} 0-1

[Event "*** Titled Tuesday Blitz"]
[Site "Chess.com"]
[Date "2020.10.20"]
[Round "10"]
[White "Koalaskakistis"]
[Black "Berardino"]
[Result "0-1"]
[WhiteElo "2464"]
[BlackElo "2591"]
[TimeControl "180+1"]
[EndTime "11:56:54 PDT"]
[Termination "Berardino won by resignation"]

1. Nf3 {[%clk 0:03:00.9]} 1... Nf6 {[%clk 0:02:58.4]} 2. g3 {[%clk 0:03:00.5]}
2... g6 {[%clk 0:02:58.9]} 3. Bg2 {[%clk 0:02:59.8]} 3... Bg7 {[%clk 0:02:59.8]}
4. O-O {[%clk 0:03:00.7]} 4... O-O {[%clk 0:03:00.7]} 5. d3 {[%clk 0:03:00.5]}
5... d5 {[%clk 0:02:56.8]} 6. Nbd2 {[%clk 0:02:59.9]} 6... Nc6 {[%clk
0:02:53.3]} 7. e4 {[%clk 0:02:59.1]} 7... h6 {[%clk 0:02:49.5]} 8. exd5 {[%clk
0:02:54.5]} 8... Nxd5 {[%clk 0:02:47.6]} 9. Re1 {[%clk 0:02:54.5]} 9... Bg4
{[%clk 0:02:40.6]} 10. h3 {[%clk 0:02:52.5]} 10... Bf5 {[%clk 0:02:40.3]} 11. d4
{[%clk 0:02:45.6]} 11... Qd7 {[%clk 0:02:38.3]} 12. g4 {[%clk 0:02:42.9]} 12...
Be6 {[%clk 0:02:35.4]} 13. c4 {[%clk 0:02:42.2]} 13... Nf4 {[%clk 0:02:34.8]}
14. d5 {[%clk 0:02:41.8]} 14... Bxg4 {[%clk 0:01:55.4]} 15. dxc6 {[%clk
0:02:38.9]} 15... bxc6 {[%clk 0:01:52.5]} 16. Ne5 {[%clk 0:02:33.5]} 16... Bxe5
{[%clk 0:01:40.2]} 17. Qxg4 {[%clk 0:02:25.2]} 17... f5 {[%clk 0:01:31.9]} 18.
Qf3 {[%clk 0:02:19.8]} 18... Nd3 {[%clk 0:01:26.2]} 19. Re3 {[%clk 0:02:14.3]}
19... Rad8 {[%clk 0:01:23.5]} 20. Qxc6 {[%clk 0:02:04.9]} 20... Qxc6 {[%clk
0:01:13.1]} 21. Bxc6 {[%clk 0:02:05.8]} 21... Bf4 {[%clk 0:00:36.8]} 22. Bd5+
{[%clk 0:02:04.2]} 22... Rxd5 {[%clk 0:00:36.6]} 23. cxd5 {[%clk 0:02:05.1]}
23... Bxe3 {[%clk 0:00:35.2]} 24. fxe3 {[%clk 0:02:06]} 24... Rd8 {[%clk
0:00:34.5]} 25. Nb3 {[%clk 0:01:57]} 25... Rxd5 {[%clk 0:00:33.2]} 26. Bd2
{[%clk 0:01:56.9]} 26... Nxb2 {[%clk 0:00:32.2]} 27. Rc1 {[%clk 0:01:55.9]}
27... Rd7 {[%clk 0:00:21.3]} 28. Bc3 {[%clk 0:01:54.3]} 28... Nd3 {[%clk
0:00:20.5]} 29. Rd1 {[%clk 0:01:53.2]} 29... e5 {[%clk 0:00:20.8]} 30. Nc1
{[%clk 0:01:50.3]} 30... e4 {[%clk 0:00:21]} 31. Nxd3 {[%clk 0:01:48.2]} 31...
exd3 {[%clk 0:00:21.9]} 32. Bd4 {[%clk 0:01:47.8]} 32... a6 {[%clk 0:00:20.3]}
33. Kf2 {[%clk 0:01:45.1]} 33... Kf7 {[%clk 0:00:20.5]} 34. Rc1 {[%clk
0:01:42.9]} 34... f4 {[%clk 0:00:19.2]} 35. Rc6 {[%clk 0:01:39.2]} 35... d2
{[%clk 0:00:18.4]} 36. Ke2 {[%clk 0:01:36.2]} 36... fxe3 {[%clk 0:00:18.5]} 37.
Rc4 {[%clk 0:01:27.9]} 37... c5 {[%clk 0:00:17.4]} 0-1

[Event "*** Titled Tuesday Blitz"]
[Site "Chess.com"]
[Date "2020.10.20"]
[Round "10"]
[White "grandcoach"]
[Black "Playgood28"]
[Result "0-1"]
[WhiteElo "2146"]
[BlackElo "2284"]
[TimeControl "180+1"]
[EndTime "11:57:04 PDT"]
[Termination "Playgood28 won on time"]

1. e4 {[%clk 0:03:00.9]} 1... e5 {[%clk 0:02:56.1]} 2. Nf3 {[%clk 0:02:58.6]}
2... d6 {[%clk 0:02:56.5]} 3. d4 {[%clk 0:02:57.9]} 3... exd4 {[%clk 0:02:52.8]}
4. Nxd4 {[%clk 0:02:56.8]} 4... Nf6 {[%clk 0:02:53]} 5. Nc3 {[%clk 0:02:54.9]}
5... Be7 {[%clk 0:02:53.4]} 6. Bc4 {[%clk 0:02:53.4]} 6... O-O {[%clk
0:02:52.8]} 7. O-O {[%clk 0:02:51.3]} 7... Nxe4 {[%clk 0:02:53.2]} 8. Nxe4
{[%clk 0:02:30.8]} 8... d5 {[%clk 0:02:51.8]} 9. Bd3 {[%clk 0:02:28.6]} 9...
dxe4 {[%clk 0:02:52]} 10. Bxe4 {[%clk 0:02:28.4]} 10... Re8 {[%clk 0:02:52.9]}
11. Bd3 {[%clk 0:01:39.2]} 11... Bf6 {[%clk 0:02:51.1]} 12. Be3 {[%clk
0:01:30.9]} 12... Nd7 {[%clk 0:02:50.7]} 13. c3 {[%clk 0:01:04.5]} 13... Ne5
{[%clk 0:02:49.8]} 14. Be2 {[%clk 0:01:04.2]} 14... a6 {[%clk 0:02:49.4]} 15.
Qb3 {[%clk 0:01:02.6]} 15... c5 {[%clk 0:02:39.1]} 16. Nf3 {[%clk 0:00:57.4]}
16... Qc7 {[%clk 0:02:38.9]} 17. c4 {[%clk 0:00:42]} 17... Ng4 {[%clk
0:02:34.1]} 18. Rfe1 {[%clk 0:00:22.3]} 18... Nxe3 {[%clk 0:02:32.9]} 19. fxe3
{[%clk 0:00:22.5]} 19... b6 {[%clk 0:02:27.8]} 20. Bd3 {[%clk 0:00:19.9]} 20...
Bb7 {[%clk 0:02:26.5]} 21. Qc2 {[%clk 0:00:19.4]} 21... g6 {[%clk 0:02:20.2]}
22. Qf2 {[%clk 0:00:18.8]} 22... Bg7 {[%clk 0:02:14.8]} 23. Rf1 {[%clk
0:00:17.6]} 23... Rad8 {[%clk 0:02:10.7]} 24. Rad1 {[%clk 0:00:13.4]} 24... Qe7
{[%clk 0:02:01.2]} 25. Rfe1 {[%clk 0:00:12.4]} 25... Be4 {[%clk 0:01:36.6]} 26.
Bxe4 {[%clk 0:00:10.1]} 26... Rxd1 {[%clk 0:01:35.9]} 27. Rxd1 {[%clk 0:00:09]}
27... Qxe4 {[%clk 0:01:35.5]} 28. Kh1 {[%clk 0:00:04.6]} 28... Qxe3 {[%clk
0:01:25.5]} 29. Qxe3 {[%clk 0:00:04.5]} 29... Rxe3 {[%clk 0:01:25]} 30. Rd6
{[%clk 0:00:03.7]} 30... b5 {[%clk 0:01:11.7]} 0-1